fUST/lending_fUST_20250701
["ID","MTS","AMOUNT","RATE_DAILY","PERIOD"]
[368773366,1751357445846,-690.642,0.00020359,2]
[368773367,1751357445855,-500.0,0.00020359,2]
[368773368,1751357445865,-500.0,0.00020359,2]
[368773369,1751357445876,-500.0,0.00020359,2]
[368773370,1751357445889,-500.0,0.00020359,2]
[368773371,1751357445899,-500.0,0.00020359,2]
[368773372,1751357445908,-500.0,0.00020359,2]
[368773373,1751357445918,-500.0,0.00020359,2]
[368773374,1751357445927,-500.0,0.00020359,2]
[368773375,1751357445936,-500.0,0.00020359,2]
[368773376,1751357445946,-5000.0,0.00020359,2]
[368773377,1751357445957,-500.0,0.00020359,2]
[368773378,1751357445967,-207.4,0.00020359,2]
[368773379,1751357445978,-500.0,0.00020359,2]
[368773380,1751357445987,-500.0,0.00020359,2]
[368773381,1751357445997,-500.0,0.00020359,2]
[368773382,1751357446009,-500.0,0.00020359,2]
[368773383,1751357446020,-500.0,0.00020359,2]
[368773384,1751357446032,-500.0,0.00020359,2]
[368773385,1751357446045,-500.0,0.00020359,2]
[368773386,1751357446058,-500.0,0.00020359,2]
[368773387,1751357446073,-500.0,0.00020359,2]
[368773388,1751357446084,-500.0,0.00020359,2]
[368773389,1751357446096,-500.0,0.00020359,2]
[368773390,1751357446118,-500.0,0.00020359,2]
[368773391,1751357446132,-561.88688042,0.00020359,2]
[368773392,1751357446142,-500.0,0.00020359,2]
[368773393,1751357446151,-500.0,0.00020359,2]
[368773394,1751357446161,-500.0,0.00020359,2]
[368773395,1751357446171,-249.0,0.00020363,2]
[368773396,1751357446180,-500.0,0.00020387,2]
[368773397,1751357446190,-500.0,0.00020387,2]
[368773398,1751357446200,-725.72,0.00020402,2]
[368773399,1751357446209,-1413.86,0.00020403,2]
[368773400,1751357446218,-892.25,0.00020403,2]
[368773401,1751357446228,-1227.57,0.00020403,2]
[368773403,1751357446239,-460.0,0.00020403,2]
[368773404,1751357446249,-1053.97,0.00020403,2]
[368773405,1751357446258,-460.0,0.00020403,2]
[368773407,1751357446268,-1221.27,0.00020403,2]
[368773408,1751357446277,-613.82,0.00020403,2]
[368773409,1751357446287,-737.26,0.00020403,2]
[368773410,1751357446297,-160.58,0.00020403,2]
[368773411,1751357446306,-295.08,0.00020403,2]
[368773412,1751357446315,-460.0,0.00020403,2]
[368773413,1751357446324,-460.0,0.00020403,2]
[368773414,1751357446333,-506.4,0.00020403,2]
[368773415,1751357446342,-602.87697311,0.00020403,2]
[368773416,1751357446352,-716.195754,0.00020414,2]
[368773417,1751357446361,-744.62095778,0.00020469,2]
[368773418,1751357446370,-1515.8,0.00020502,2]
[368773419,1751357446380,-460.0,0.00020502,2]
[368773420,1751357446390,-509.27,0.00020502,2]
[368773421,1751357446400,-460.0,0.00020502,2]
[368773422,1751357446409,-946.84,0.00020502,2]
[368773423,1751357446418,-460.0,0.00020502,2]
[368773424,1751357446427,-460.0,0.00020503,2]
[368773425,1751357446437,-460.0,0.00020503,2]
[368773426,1751357446447,-371.17610176,0.0002059,3]
[368773427,1751357446456,-1856.58,0.000206,2]
[368773428,1751357446465,-363.726,0.00020657,2]
[368773429,1751357446475,-1412.36075202,0.00020674,2]
[368773430,1751357446485,-725.72,0.00020676,2]
[368773431,1751357446494,-1413.86,0.00020677,2]
[368773432,1751357446504,-892.25,0.00020677,2]
[368773433,1751357446515,-1227.57,0.00020677,2]
[368773434,1751357446524,-151.0,0.00020677,2]
[368773435,1751357446534,-1053.97,0.00020677,2]
[368773436,1751357446545,-460.0,0.00020677,2]
[368773437,1751357446554,-1221.27,0.00020677,2]
[368773438,1751357446564,-613.82,0.00020677,2]
[368773439,1751357446573,-737.26,0.00020677,2]
[368773440,1751357446582,-460.0,0.00020677,2]
[368773441,1751357446591,-460.0,0.00020677,2]
[368773442,1751357446601,-506.4,0.00020677,2]
[368773443,1751357446610,-500.0,0.00020708,2]
[368773444,1751357446620,-1515.8,0.00020776,2]
[368773445,1751357446630,-460.0,0.00020776,2]
[368773446,1751357446640,-509.27,0.00020776,2]
[368773447,1751357446650,-460.0,0.00020776,2]
[368773448,1751357446660,-946.84,0.00020776,2]
[368773449,1751357446669,-460.0,0.00020776,2]
[368773450,1751357446679,-466.97,0.00020777,2]
[368773452,1751357446688,-505.33,0.00020777,2]
[368773454,1751357446698,-371.17610176,0.00020831,4]
[368773456,1751357446707,-500.0,0.00020845,2]
[368773458,1751357446716,-243.73675996,0.00020845,2]
[368773460,1751357446726,-150.0,0.00020875,2]
[368773462,1751357446735,-168.74373069,0.000209,2]
[368773464,1751357446744,-5000.0,0.00020907,2]
[368773466,1751357446753,-1000.0,0.00020935,2]
[368773468,1751357446763,-500.0,0.00020935,2]
[368773470,1751357446772,-725.72,0.0002095,2]
[368773473,1751357446782,-1413.86,0.00020951,2]
[368773476,1751357446791,-892.25,0.00020951,2]
[368773478,1751357446800,-1227.57,0.00020951,2]
[368773480,1751357446809,-1053.97,0.00020951,2]
[368773482,1751357446819,-460.0,0.00020951,2]
[368773484,1751357446828,-1221.27,0.00020951,2]
[368773486,1751357446837,-613.82,0.00020951,2]
[368773488,1751357446846,-737.26,0.00020951,2]
[368773490,1751357446855,-460.0,0.00020951,2]
[368773492,1751357446863,-460.0,0.00020951,2]
[368773493,1751357446873,-506.4,0.00020951,2]
[368773494,1751357446882,-245.0,0.00020951,2]
[368773495,1751357446892,-245.361217,0.00021,2]
[368773496,1751357446902,-73000.0,0.00021,2]
[368773497,1751357446911,-151.0,0.00021,2]
[368773498,1751357446920,-151.0,0.00021,2]
[368773499,1751357446929,-273.256924,0.00021,2]
[368773500,1751357446938,-151.0,0.00021,2]
[368773501,1751357446948,-151.0,0.00021,2]
[368773502,1751357446957,-151.0,0.00021,2]
[368773503,1751357446966,-151.0,0.00021,2]
[368773504,1751357446975,-151.0,0.00021,2]
[368773505,1751357446985,-151.0,0.00021,2]
[368773506,1751357446994,-151.0,0.00021,2]
[368773507,1751357447004,-151.0,0.00021,2]
[368773508,1751357447013,-151.0,0.00021,2]
[368773509,1751357447023,-151.0,0.00021,2]
[368773510,1751357447033,-166.692229,0.00021,2]
[368773511,1751357447043,-166.692229,0.00021,2]
[368773512,1751357447052,-151.0,0.00021,2]
[368773513,1751357447061,-151.920531,0.00021,2]
[368773514,1751357447071,-151.0,0.00021,2]
[368773515,1751357447080,-151.0,0.00021,2]
[368773516,1751357447089,-151.0,0.00021,2]
[368773517,1751357447099,-151.0,0.00021,2]
[368773518,1751357447112,-422.361218,0.00021,2]
[368773519,1751357447123,-422.361218,0.00021,2]
[368773520,1751357447132,-151.0,0.00021,2]
[368773521,1751357447141,-151.0,0.00021,2]
[368773522,1751357447152,-151.0,0.00021,2]
[368773523,1751357447162,-151.0,0.00021,2]
[368773524,1751357447172,-151.0,0.00021,2]
[368773525,1751357447182,-151.0,0.00021,2]
[368773526,1751357447193,-151.0,0.00021,2]
[368773527,1751357447203,-151.0,0.0002105,2]
[368773528,1751357447212,-1515.8,0.0002105,2]
[368773529,1751357447221,-460.0,0.0002105,2]
[368773530,1751357447231,-151.0,0.0002105,2]
[368773531,1751357447240,-151.0,0.0002105,2]
[368773532,1751357447249,-151.0,0.0002105,2]
[368773533,1751357447259,-509.27,0.0002105,2]
[368773534,1751357447269,-150.26,0.0002105,2]
[368773535,1751357447279,-946.84,0.0002105,2]
[368773536,1751357447288,-460.0,0.0002105,2]
[368773537,1751357447298,-151.0,0.00021051,2]
[368773538,1751357447307,-151.0,0.00021051,2]
[368773539,1751357447316,-151.0,0.00021051,2]
[368773540,1751357447326,-151.0,0.00021051,2]
[368773541,1751357447335,-151.0,0.00021051,2]
[368773542,1751357447344,-151.0,0.00021051,2]
[368773543,1751357447354,-151.0,0.00021051,2]
[368773544,1751357447364,-371.17610176,0.00021072,4]
[368773545,1751357447375,-966.0,0.00021144,2]
[368773546,1751357447384,-646.0,0.00021144,2]
[368773547,1751357447393,-2151.0,0.00021144,2]
[368773548,1751357447403,-406.0,0.00021144,2]
[368773549,1751357447413,-725.72,0.00021224,2]
[368773550,1751357447423,-1413.86,0.00021225,2]
[368773551,1751357447433,-892.25,0.00021225,2]
[368773552,1751357447442,-1227.57,0.00021225,2]
[368773553,1751357447452,-1053.97,0.00021225,2]
[368773554,1751357447463,-460.0,0.00021225,2]
[368773555,1751357447566,-1221.27,0.00021225,2]
[368773556,1751357447578,-613.82,0.00021225,2]
[368773557,1751357447588,-737.26,0.00021225,2]
[368773558,1751357447597,-460.0,0.00021225,2]
[368773559,1751357447607,-460.0,0.00021225,2]
[368773560,1751357447616,-506.4,0.00021225,2]
[368773561,1751357447627,-1000.0,0.00021256,2]
[368773562,1751357447636,-371.17610176,0.00021314,5]
[368773563,1751357447646,-1515.8,0.00021324,2]
[368773564,1751357447656,-460.0,0.00021324,2]
[368773565,1751357447665,-509.27,0.00021324,2]
[368773566,1751357447675,-946.84,0.00021324,2]
[368773567,1751357447684,-460.0,0.00021324,2]
[368773568,1751357447694,-598.41627172,0.00021437,2]
[368773569,1751357447704,-460.0,0.00021437,2]
[368773570,1751357447713,-460.0,0.00021437,2]
[368773571,1751357447724,-483.89451918,0.00021437,2]
[368773572,1751357447733,-460.0,0.00021437,2]
[368773573,1751357447743,-460.0,0.00021437,2]
[368773574,1751357447753,-460.0,0.00021437,2]
[368773575,1751357447762,-427.80036726,0.00021437,2]
[368773576,1751357447772,-460.0,0.00021437,2]
[368773577,1751357447781,-1730.5,0.00021437,2]
[368773578,1751357447791,-460.0,0.00021437,2]
[368773579,1751357447800,-491.36,0.00021437,2]
[368773580,1751357447809,-1500.0,0.00021483,2]
[368773581,1751357447819,-249.0,0.00021489,2]
[368773582,1751357447828,-725.72,0.00021498,2]
[368773583,1751357447838,-1412.36075202,0.00021498,2]
[368773584,1751357447847,-1413.86,0.00021499,2]
[368773585,1751357447856,-892.25,0.00021499,2]
[368773586,1751357447866,-1227.57,0.00021499,2]
[368773587,1751357447876,-1053.97,0.00021499,2]
[368773588,1751357447885,-460.0,0.00021499,2]
[368773589,1751357447895,-1221.27,0.00021499,2]
[368773590,1751357447905,-613.82,0.00021499,2]
[368773591,1751357447915,-737.26,0.00021499,2]
[368773592,1751357447923,-460.0,0.00021499,2]
[368773593,1751357447933,-430.37,0.00021499,2]
[368773594,1751357447942,-506.4,0.00021499,2]
[368773595,1751357447953,-371.17610176,0.00021555,5]
[368773596,1751357447963,-222192.49777638,0.00021568,4]
[368773597,1751357448077,-3072.59983121,0.00021568,4]
[368773598,1751357448090,-5927.59688274,0.00021568,4]
[368773599,1751357448255,-460.0,0.00019581,2]
[368773600,1751357448265,-460.0,0.00019855,2]
[368773601,1751357448274,-460.0,0.00020129,2]
[368773602,1751357448284,-288.680614,0.00020403,2]
[368773603,1751357448295,-171.319386,0.00020403,2]
[368773604,1751357448304,-204.162612,0.00020677,2]
[368773605,1751357448324,-255.837388,0.00020677,2]
[368773606,1751357448333,-188.87,0.00020951,2]
[368773607,1751357448343,-4975.98709851,0.00021568,4]
[368773608,1751357452243,-3821.57261825,0.00021568,4]
[368773609,1751357452254,-1337.380915,0.00021568,4]
[368773610,1751357452266,-574.47949418,0.00021568,4]
[368773611,1751357452277,-1530.18372225,0.00021568,4]
[368773612,1751357452293,-25932.39633428,0.00021568,4]
[368773613,1751357452304,-5293.18891809,0.00021568,4]
[368773614,1751357457148,460.0,0.00018036,2]
[368773615,1751357482152,1846.61,0.00018036,2]
[368773616,1751357504285,460.0,0.00018037,2]
[368773617,1751357515428,460.0,0.00018036,2]
[368773618,1751357529978,470.89,0.00018036,2]
[368773619,1751357537801,233.067166,0.00017774,2]
[368773620,1751357537957,233.067166,0.00017774,120]
[368773621,1751357610368,274.6,0.00025222,120]
[368773623,1751357625960,211.1029056,0.0001736,2]
[368773624,1751357638633,460.0,0.00018037,2]
[368773625,1751357643099,168.30842173,0.00018011,2]
[368773628,1751357739271,460.0,0.00018037,2]
[368773629,1751357751700,3683.1893203,0.00017211,2]
[368773633,1751357853594,460.0,0.00018037,2]
[368773634,1751357868964,1238.52062518,0.000181,2]
[368773635,1751357875797,1212.0461805,0.00017161,2]
[368773636,1751357882502,5000.0,0.000181,2]
[368773637,1751357902208,2780.52787395,0.000181,2]
[368773638,1751357902243,2219.47212605,0.000181,2]
[368773639,1751357911836,17780.52787395,0.00017211,2]
[368773640,1751357911873,7303.44350755,0.00017211,2]
[368773642,1751357914195,12696.55649245,0.00017211,2]
[368773643,1751357914238,12203.44350755,0.00017211,2]
[368773644,1751357918365,5000.0,0.000181,2]
[368773645,1751357934511,2796.55649245,0.000181,2]
[368773646,1751357934545,2203.44350755,0.000181,2]
[368773647,1751357950312,5000.0,0.000181,2]
[368773648,1751357966475,5000.0,0.000181,2]
[368773649,1751357982896,5000.0,0.000181,2]
[368773651,1751357998654,2796.55649245,0.000181,2]
[368773652,1751357998681,2203.44350755,0.000181,2]
[368773653,1751358014934,5000.0,0.000181,2]
[368773654,1751358030926,5000.0,0.000181,2]
[368773655,1751358046971,5000.0,0.000181,2]
[368773656,1751358062195,2796.55649245,0.000181,2]
[368773657,1751358062219,2203.44350755,0.000181,2]
[368773658,1751358065608,166.0,0.00017136,2]
[368773659,1751358073323,1298.0,0.00025208,60]
[368773660,1751358078771,5000.0,0.000181,2]
[368773661,1751358092109,1259.0,0.00025208,62]
[368773662,1751358100300,5000.0,0.000181,2]
[368773663,1751358116121,304.66560063,0.00025208,60]
[368773664,1751358116150,5000.0,0.000181,2]
[368773665,1751358132123,2630.55649245,0.000181,2]
[368773666,1751358132147,2369.44350755,0.000181,2]
[368773667,1751358148179,5000.0,0.000181,2]
[368773668,1751358165568,5000.0,0.000181,2]
[368773669,1751358177377,1463.89749615,0.00025208,64]
[368773670,1751358182084,5000.0,0.0001833,6]
[368773671,1751358196773,7630.55649245,0.00017161,2]
[368773672,1751358196796,4488.88902345,0.00017161,2]
[368773673,1751358197676,5000.0,0.0001833,6]
[368773674,1751358197838,162.0,0.000181,2]
[368773675,1751358199143,162.0,0.000181,2]
[368773676,1751358199952,162.0,0.000181,2]
[368773677,1751358212604,5000.0,0.0001833,6]
[368773679,1751358228990,5000.0,0.0001833,6]
[368773680,1751358232827,162.0,0.000181,2]
[368773681,1751358234785,162.0,0.000181,3]
[368773682,1751358237743,162.0,0.000181,3]
[368773683,1751358247068,5000.0,0.000181,2]
[368773684,1751358248336,162.0,0.000181,3]
[368773685,1751358259957,167.0,0.000181,3]
[368773686,1751358262997,5000.0,0.000181,2]
[368773687,1751358278901,4210.11097655,0.000181,2]
[368773688,1751358278924,789.88902345,0.000181,2]
[368773689,1751358295065,5000.0,0.000181,2]
[368773705,1751358312127,693.76186437,0.00018009,2]
[368773706,1751358312318,693.76186435,0.0001801,2]
[368773707,1751358312631,693.76186435,0.0001801,2]
[368773708,1751358313018,693.76186435,0.00018011,2]
[368773709,1751358313247,5000.0,0.000181,2]
[368773710,1751358313837,693.76186435,0.00018011,2]
[368773711,1751358328443,5000.0,0.000181,2]
[368773713,1751358343829,741.30165478,0.000181,2]
[368773714,1751358343852,4258.69834522,0.000181,2]
[368773716,1751358363993,5000.0,0.000181,2]
[368773717,1751358368385,164.91763068,0.00018005,2]
[368773718,1751358379789,5000.0,0.000181,2]
[368773719,1751358394928,5000.0,0.000181,2]
[368773720,1751358397934,164.0,0.000181,3]
[368773721,1751358397967,412.3840241,0.00013699,2]
[368773722,1751358397992,78.1234249,0.00013699,2]
[368773723,1751358403295,645.7586102,0.00017136,2]
[368773724,1751358404249,-300.0,0.00018108,2]
[368773725,1751358404270,-21.22198446,0.00018109,2]
[368773726,1751358412145,5000.0,0.000181,2]
[368773727,1751358413259,10000.0,0.00017161,2]
[368773728,1751358415342,1018.952659,0.00017161,2]
[368773730,1751358428379,3257.1653059,0.000181,2]
[368773731,1751358428402,1742.8346941,0.000181,2]
[368773732,1751358430767,1052.37861041,0.00018011,2]
[368773734,1751358446483,5000.0,0.000181,2]
[368773735,1751358448085,-278.77801554,0.00018109,2]
[368773736,1751358448109,-1045.0,0.00018109,2]
[368773737,1751358448130,-793.75254914,0.00018109,2]
[368773739,1751358463552,5000.0,0.000181,2]
[368773741,1751358469316,2216.2372727,0.00017161,2]
[368773743,1751358472525,20272.91685852,0.00025209,120]
[368773744,1751358474280,4988.54942279,0.00018,2]
[368773745,1751358474306,409.38081862,0.00018,2]
[368773748,1751358478871,5000.0,0.000181,2]
[368773750,1751358494233,5000.0,0.000181,2]
[368773751,1751358498319,413.66786421,0.00010618,2]
[368773752,1751358500374,9176.95131717,0.000125,2]
[368773753,1751358500398,2165.43601161,0.000125,2]
[368773755,1751358509501,5000.0,0.000181,2]
[368773756,1751358510831,164.575689,0.00017567,2]
[368773757,1751358511182,173.89140172,0.00017568,2]
[368773758,1751358512295,276.85650792,0.00014114,2]
[368773759,1751358514825,281.68839846,0.0001,2]
[368773760,1751358517487,22683.62844544,0.00025209,120]
[368773761,1751358520274,11937.55199129,0.00017,2]
[368773762,1751358520296,20000.0,0.00017,2]
[368773763,1751358520317,20000.0,0.00017,2]
[368773764,1751358520338,3947.1722073,0.00017,2]
[368773767,1751358527599,5000.0,0.000181,2]
[368773769,1751358544138,5000.0,0.000181,2]
[368773772,1751358548827,1453.6104819,0.00017136,2]
[368773775,1751358562045,4599.2173108,0.000181,2]
[368773776,1751358562068,400.7826892,0.000181,2]
[368773777,1751358579616,5000.0,0.000181,2]
[368773782,1751358595294,5000.0,0.000181,2]
[368773789,1751358610586,5000.0,0.000181,2]
[368773793,1751358626286,4599.2173108,0.000181,2]
[368773794,1751358626312,400.7826892,0.000181,2]
[368773804,1751358631935,-300.0,0.00018101,2]
[368773805,1751358631945,-300.0,0.00018101,2]
[368773806,1751358631955,-622.17,0.00018102,3]
[368773807,1751358631970,-933.26,0.00018102,3]
[368773808,1751358631979,-466.63,0.00018102,3]
[368773809,1751358631988,-233.32,0.00018102,3]
[368773810,1751358631998,-488.29,0.00018102,3]
[368773811,1751358632007,-244.14,0.00018102,3]
[368773812,1751358632017,-732.46,0.00018102,3]
[368773813,1751358632027,-406.24745086,0.00018109,2]
[368773814,1751358632037,-460.0,0.00018109,2]
[368773815,1751358632047,-211.6603477,0.0001811,2]
[368773832,1751358637774,-366.73923664,0.00018109,2]
[368773833,1751358637788,-93.26076336,0.00018109,2]
[368773834,1751358637800,-460.0,0.00018109,2]
[368773835,1751358637811,-248.3396523,0.0001811,2]
[368773836,1751358637823,-460.0,0.0001811,2]
[368773837,1751358637836,-1095.47,0.0001811,2]
[368773838,1751358637854,-793.57,0.0001811,2]
[368773839,1751358637868,-999.04523019,0.0001811,2]
[368773840,1751358637880,-834.4,0.0001811,2]
[368773841,1751358637892,-971.83,0.0001811,2]
[368773842,1751358637905,-60.28780132,0.0001811,2]
[368773843,1751358637922,-906.55219868,0.0001811,2]
[368773844,1751358637935,-360.0,0.0001811,2]
[368773845,1751358637948,-460.0,0.0001811,2]
[368773846,1751358637960,-675.82,0.0001811,2]
[368773847,1751358637970,-460.0,0.0001811,2]
[368773848,1751358637980,-460.0,0.0001811,2]
[368773849,1751358637991,-460.0,0.0001811,2]
[368773850,1751358638002,-460.0,0.0001811,2]
[368773851,1751358638012,-460.0,0.0001811,2]
[368773852,1751358638026,-460.0,0.0001811,2]
[368773853,1751358638040,-461.39962889,0.0001811,2]
[368773854,1751358638052,-460.0,0.0001811,2]
[368773855,1751358638064,-460.0,0.0001811,2]
[368773856,1751358638075,-460.0,0.0001811,2]
[368773857,1751358638086,-460.0,0.0001811,2]
[368773858,1751358638097,-1048.64,0.0001811,2]
[368773859,1751358638109,-460.0,0.0001811,2]
[368773860,1751358638120,-692.04,0.0001811,2]
[368773861,1751358638132,-528.57277548,0.0001811,2]
[368773862,1751358638144,-460.0,0.0001811,2]
[368773863,1751358638155,-460.0,0.0001811,2]
[368773864,1751358638165,-460.0,0.0001811,2]
[368773865,1751358638175,-460.0,0.0001811,2]
[368773866,1751358638187,-460.0,0.0001811,2]
[368773867,1751358638200,-598.41627172,0.00018111,2]
[368773868,1751358638211,-460.0,0.00018111,2]
[368773869,1751358638222,-460.0,0.00018111,2]
[368773870,1751358638233,-460.0,0.00018111,2]
[368773871,1751358638244,-483.89451918,0.00018111,2]
[368773872,1751358638256,-460.0,0.00018111,2]
[368773873,1751358638267,-460.0,0.00018111,2]
[368773874,1751358638278,-460.0,0.00018111,2]
[368773875,1751358638289,-427.80036726,0.00018111,2]
[368773876,1751358638301,-460.0,0.00018111,2]
[368773877,1751358638312,-460.0,0.00018111,2]
[368773878,1751358638323,-460.0,0.00018111,2]
[368773879,1751358638333,-309.33197149,0.00018111,2]
[368773880,1751358638344,-460.0,0.00018111,2]
[368773881,1751358638355,-463.16904811,0.00018111,2]
[368773882,1751358638366,-460.0,0.00018111,2]
[368773883,1751358638377,-474.1359771,0.00018111,2]
[368773884,1751358638388,-318.32956325,0.00018111,2]
[368773885,1751358638399,-460.0,0.00018111,2]
[368773886,1751358638409,-460.0,0.00018111,2]
[368773887,1751358638420,-460.0,0.00018111,2]
[368773888,1751358638432,-460.0,0.00018111,2]
[368773889,1751358638444,-181.56061243,0.00018111,2]
[368773890,1751358638465,-278.43938757,0.00018111,2]
[368773891,1751358638476,-460.0,0.00018111,2]
[368773892,1751358638486,-460.0,0.00018111,2]
[368773893,1751358638497,-460.0,0.00018111,2]
[368773894,1751358638509,-460.0,0.00018111,2]
[368773895,1751358638520,-422.59,0.00018111,2]
[368773896,1751358638531,-464.86,0.00018111,2]
[368773897,1751358638543,-460.0,0.00018111,2]
[368773898,1751358638553,-293.32673143,0.00018111,2]
[368773899,1751358638564,-460.0,0.00018111,2]
[368773900,1751358638575,-460.0,0.00018111,2]
[368773901,1751358638586,-460.0,0.00018111,2]
[368773902,1751358638597,-460.0,0.00018111,2]
[368773903,1751358638608,-520.95,0.00018111,2]
[368773904,1751358638619,-460.0,0.00018111,2]
[368773905,1751358638631,-460.0,0.00018111,2]
[368773906,1751358638643,-460.0,0.00018111,2]
[368773907,1751358638654,-460.0,0.00018111,2]
[368773908,1751358638666,-460.0,0.00018111,2]
[368773909,1751358638677,-463.08360126,0.00018111,2]
[368773910,1751358638689,-460.0,0.00018111,2]
[368773911,1751358638700,-460.0,0.00018111,2]
[368773912,1751358638712,-460.0,0.00018111,2]
[368773913,1751358638724,-532.14,0.00018111,2]
[368773914,1751358638735,-1744.48,0.00018111,2]
[368773915,1751358638746,-460.0,0.00018111,2]
[368773916,1751358638759,-460.0,0.00018111,2]
[368773918,1751358638770,-460.0,0.00018111,2]
[368773919,1751358638781,-460.0,0.00018111,2]
[368773921,1751358638793,-460.0,0.00018111,2]
[368773922,1751358638804,-460.0,0.00018111,2]
[368773923,1751358638952,-460.0,0.00018111,2]
[368773924,1751358638963,-460.0,0.00018111,2]
[368773925,1751358638973,-471.28,0.00018111,2]
[368773926,1751358638983,-251.70973992,0.00018111,2]
[368773927,1751358638992,-460.0,0.00018111,2]
[368773928,1751358639002,-460.0,0.00018111,2]
[368773929,1751358639011,-263.28257756,0.00018111,2]
[368773930,1751358639020,-460.0,0.00018111,2]
[368773931,1751358639030,-502.53,0.00018111,2]
[368773932,1751358639039,-260.63102713,0.00018111,2]
[368773933,1751358639049,-202.44654161,0.00018111,2]
[368773934,1751358639058,-649.04984312,0.00018111,2]
[368773935,1751358639067,-454.33489019,0.00018111,2]
[368773936,1751358639076,-370000.0,0.00018112,2]
[368773937,1751358639086,-460.0,0.0001821,2]
[368773938,1751358639095,-460.0,0.0001821,2]
[368773939,1751358639105,-460.0,0.0001821,2]
[368773940,1751358639115,-460.0,0.0001821,2]
[368773941,1751358639124,-476.21,0.0001821,2]
[368773942,1751358639134,-460.0,0.0001821,2]
[368773943,1751358639144,-460.0,0.0001821,2]
[368773944,1751358639153,-460.0,0.0001821,2]
[368773945,1751358639163,-460.0,0.0001821,2]
[368773946,1751358639172,-460.0,0.0001821,2]
[368773947,1751358639182,-460.0,0.0001821,2]
[368773948,1751358639191,-460.0,0.0001821,2]
[368773949,1751358639200,-460.0,0.0001821,2]
[368773950,1751358639210,-460.0,0.0001821,2]
[368773951,1751358639219,-460.0,0.0001821,2]
[368773952,1751358639229,-460.0,0.0001821,2]
[368773953,1751358639238,-460.0,0.0001821,2]
[368773954,1751358639248,-460.0,0.0001821,2]
[368773956,1751358639257,-460.0,0.0001821,2]
[368773958,1751358639267,-460.0,0.0001821,2]
[368773960,1751358639276,-460.0,0.0001821,2]
[368773962,1751358639285,-460.0,0.0001821,2]
[368773964,1751358639295,-163.46604659,0.0001821,2]
[368773966,1751358639304,-460.0,0.0001821,2]
[368773968,1751358639313,-460.0,0.0001821,2]
[368773970,1751358639323,-500.0,0.0001821,2]
[368773972,1751358639332,-500.0,0.0001821,2]
[368773974,1751358639341,-710.13,0.0001821,2]
[368773977,1751358639351,-480.22,0.0001821,2]
[368773979,1751358639360,-460.0,0.0001821,2]
[368773981,1751358639370,-460.0,0.0001821,2]
[368773983,1751358639379,-460.0,0.0001821,2]
[368773985,1751358639388,-460.0,0.0001821,2]
[368773987,1751358639398,-2176.73,0.0001821,2]
[368773989,1751358639407,-460.0,0.0001821,2]